Cogmind - Beta 14 @@@ ROGUE MODE // 2025.01.14 @ 17:39:00 Player: PeanutArbuckle Result: Self-destructed Performance ------------- Evolutions (1) 500 Regions Visited (2) 400 Robots Destroyed (28) 140 Value Destroyed (710) 710 Prototype IDs (1) 20 Alien Tech Used (0) 0 Bonus (82) 82 TOTAL SCORE: 1852 Bonus ------- High Alert Combat Kills 82 Cogmind --------- Core Integrity 75/400 Matter 30/300 Energy 99/100 System Corruption 0% Temperature Cool (0) Movement Core (50) Location -9/Materials Parts ------- > --- POWER (1) -------- (None) > --- PROPULSION (4) --- (None) > --- UTILITY (2) ------ Small Storage Unit Weight Redist. System > --- WEAPON (2) ------- (None) > --- INVENTORY (8) ---- Ion Engine Reflective Plating Reflective Plating Reflective Plating Reflective Plating Mini Grenade Launcher Peak State ------------ > --- POWER ------------ Ion Engine > --- PROPULSION ------- Flight Unit Flight Unit Flight Unit Flight Unit > --- UTILITY ---------- Small Storage Unit Weight Redist. System > --- WEAPON ----------- Mini Grenade Launcher Mini Grenade Launcher > --- INVENTORY -------- Ion Engine Mini Grenade Launcher Mini Grenade Launcher [Rating: 12] Favorites ----------- Power Ion Engine Engine Ion Engine Propulsion Flight Unit Treads Light Treads Flight Unit Flight Unit Utility Small Storage Unit Device Weight Redist. System Storage Small Storage Unit Weapon Mini Grenade Launcher Energy Gun Medium Laser Ballistic Gun Light Assault Rifle Launcher Mini Grenade Launcher Build | -11 -10 -9 ------- Run | Yrd Mat Mat Slots Evolved 2 | . . 2 Power . | . . . Propulsion 2 | . . 2 Utility . | . . . Weapon . | . . . Parts Attached 18 | 6 5 7 Power 2 | 1 . 1 Engine 2 | 1 . 1 Core . | . . . Reactor . | . . . Propulsion 6 | 2 2 2 Treads 2 | 2 . . Leg . | . . . Wheel . | . . . Hover . | . . . Flight 4 | . 2 2 Utility 2 | 1 1 . Device 1 | . 1 . Storage 1 | 1 . . Processor . | . . . Hackware . | . . . Protection . | . . . Artifact . | . . . Weapon 8 | 2 2 4 Energy Gun 1 | 1 . . Energy Cannon . | . . . Ballistic Gun 1 | 1 . . Ballistic Cannon . | . . . Launcher 6 | . 2 4 Special Weapon . | . . . Impact Weapon . | . . . Slashing Weapon . | . . . Piercing Weapon . | . . . Special Melee Weapon . | . . . Unidentified Prototypes 1 | . . 1 Parts Lost 9 | . . 9 Power 2 | . . 2 Propulsion 4 | . . 4 Utility . | . . . Weapon 3 | . . 3 Highest Loss Streak 3 | . . 3 To Critical Strikes . | . . . Average Slot Usage (%) 64 | . 88 56 Engine 11 | . 14 10 Treads 5 | . 19 . Flight 8 | . 8 8 Device 8 | . 2 11 Storage 11 | . 14 11 Energy Gun 2 | . 9 . Ballistic Gun 2 | . 9 . Launcher 13 | . 8 15 Peak Build Rating 12 | 6 10 12 Average Rating 7 | 4 7 8 On Entrance 5 | . 6 10 Naked Turns . | . . . Heaviest Build 15 | 13 13 15 Greatest Support 40 | 40 40 22 Greatest Overweight (x) 1 | . 1 1 Average Overweight (x) . | . . . Largest Inventory Capacity 8 | 8 8 8 Average Capacity 7 | 6 8 8 Most Carried 8 | 4 8 7 Average Carried 4 | 1 4 4 Final Capacity 8 | 8 8 8 Final Carried 6 | 1 5 6 Class Distribution -------------------- 95% | Mutant 4% | Sprinter Dominant Class ---------------- Mutant | -10/Materials Mutant | -9/Materials Resources | -11 -10 -9 ----------- Run | Yrd Mat Mat Matter Collected 512 | 261 72 179 Remotely . | . . . Salvage Created 565 | . 142 423 Parts 39 | . 10 29 Haulers Intercepted 2 | . 1 1 Recyclers Shooed . | . . . Parts Field Recycled . | . . . Retrieved Matter . | . . . Parts Self-Destructed . | . . . Prevented . | . . . Kills | -11 -10 -9 ------- Run | Yrd Mat Mat Combat Hostiles Destroyed 14 | . 3 11 AOE 14 | . 3 11 Classes Destroyed 10 | . 4 6 Worker 2 | . . 2 Builder 4 | . 2 2 Hauler 2 | . 1 1 Recycler 1 | . . 1 Operator 1 | . . 1 Watcher 4 | . 1 3 Grunt 8 | . 3 5 Brawler 1 | . . 1 Duelist 1 | . . 1 Sentry 4 | . . 4 Best Kill Streak 11 | . 7 11 Combat Bots Only 6 | . 3 6 Max Kills in Single Turn 3 | . 2 3 Gunslinging . | . . . Exploded 1 | . 1 1 Melee . | . . . Uniques/NPCs Destroyed . | . . . Combat | -11 -10 -9 -------- Run | Yrd Mat Mat Hostile Shots Fired 72 | . 2 70 Missed 23 | . 1 22 Damage Taken 819 | . 18 801 Core 325 | . . 325 Absorbed by Shields . | . . . Core Remaining (%) 100 | 100 100 . Volleys Fired 31 | 1 3 27 Largest 2 | 2 2 2 Hottest 70 | 70 60 60 Shots Fired 48 | 2 6 40 Gun 2 | 2 . . Cannon . | . . . Launcher 46 | . 6 40 Special . | . . . Kinetic 1 | 1 . . Thermal 1 | 1 . . Explosive 46 | . 6 40 Electromagnetic . | . . . Robot Hit Streak 4 | . 1 4 Robot Miss Streak 3 | . 3 2 Penetration Max . | . . . Secondary Targets . | . . . Shots Hit Robots 19 | . 1 18 Core Hits 49 | 1 10 38 Critical Kills . | . . . Critical Parts Destroyed . | . . . Critical Strikes . | . . . Melee Attacks . | . . . Impact . | . . . Slashing . | . . . Piercing . | . . . Sneak Attacks . | . . . Combat Hostiles . | . . . Follow-up Attacks . | . . . Damage Inflicted 2013 | 19 422 1572 Guns 19 | 19 . . Cannons . | . . . Explosions 1989 | . 422 1567 Melee . | . . . Ramming 5 | . . 5 Kinetic 7 | 7 . . Thermal 12 | 12 . . Explosive 1989 | . 422 1567 Electromagnetic . | . . . Impact . | . . . Slashing . | . . . Piercing . | . . . Highest Corruption . | . . . Average Corruption . | . . . Corruption Purged . | . . . Corruption Blocked . | . . . Overload Shots . | . . . Overflow Damage 53 | . 26 27 Projectiles . | . . . Explosions 53 | . 26 27 Melee . | . . . Knockbacks . | . . . Impact . | . . . Kinetic . | . . . Secondary . | . . . Self-Inflicted Damage 168 | . . 168 Shots 8 | . . 8 Rammed 3 | . . 3 Targets Rammed 3 | . . 3 Kicked . | . . . Crushed . | . . . Highest Temperature 30 | 30 25 29 Average Temperature 10 | 19 13 9 Received Heat Transfer 276 | . 9 267 Siege Activations . | . . . Robots Corrupted . | . . . Combat Hostiles . | . . . Parts Fried . | . . . Impact Corruptions . | . . . Robots Melted . | . . . Combat Hostiles . | . . . Parts Melted . | . . . Heat Transferred 37 | 37 . . Parts Sabotaged . | . . . Parts Stolen . | . . . Parts Stripped . | . . . Power Chain Reactions . | . . . Alert | -11 -10 -9 ------- Run | Yrd Mat Mat Peak Influence 650 | . 205 650 Initial 86 | . . 86 Average 326 | . 23 483 Maximum Alert Level 2 | . 1 2 Low Security (%) 35 | 100 93 4 Level 1 18 | . 6 25 Level 2 46 | . . 70 Level 3 . | . . . Level 4 . | . . . Level 5 . | . . . High Security . | . . . Max Security . | . . . Squads Dispatched 3 | . . 3 Investigation . | . . . Extermination . | . . . Reinforcement 3 | . . 3 Assault . | . . . Garrison . | . . . Intercept . | . . . Searches Triggered . | . . . Construction Impeded 2 | . . 2 Haulers Reinforced . | . . . Active Scanning Responses . | . . . Cargo Convoy Interrupts . | . . . Stealth | -11 -10 -9 --------- Run | Yrd Mat Mat Distress Signals 2 | . . 2 Communications Jammed . | . . . Distress Signals . | . . . Times Spotted 24 | . 2 22 Peak Tracking Total 4 | . 1 4 Tactical Retreats 3 | . . 3 Traps | -11 -10 -9 ------- Run | Yrd Mat Mat Traps Triggered . | . . . Indirectly . | . . . Trap Hack Attempts . | . . . Triggered . | . . . Disarmed . | . . . Reprogrammed . | . . . Reused . | . . . Traps Extracted . | . . . Installed . | . . . Triggered . | . . . Machines | -11 -10 -9 ---------- Run | Yrd Mat Mat Machines Disabled 5 | . 2 3 Max in Single Turn 2 | . 2 1 Machines Repaired . | . . . Machines Dismantled . | . . . Machines Sabotaged . | . . . Overloaded Fab Kills . | . . . Hacking | -11 -10 -9 --------- Run | Yrd Mat Mat Machines Accessed 1 | . . 1 Terminals 1 | . . 1 Fabricators . | . . . Repair Stations . | . . . Recycling Units . | . . . Scanalyzers . | . . . Garrison Access . | . . . Total Hacks 2 | . . 2 Successful 2 | . . 2 Failed . | . . . Catastrophic . | . . . Database Lockouts . | . . . Manual . | . . . Terminals 2 | . . 2 Fabricators . | . . . Repair Stations . | . . . Recycling Units . | . . . Scanalyzers . | . . . Garrison Access . | . . . Terminal Hacks 2 | . . 2 Record 2 | . . 2 Fabricator Hacks . | . . . Repair Station Hacks . | . . . Recycling Unit Hacks . | . . . Scanalyzer . | . . . Garrison Access Hacks . | . . . Unauthorized Hacks . | . . . Terminals . | . . . Fabricators . | . . . Repair Stations . | . . . Recycling Units . | . . . Scanalyzers . | . . . Garrison Access . | . . . Data Cores Recovered . | . . . Used . | . . . Hacking Detections 1 | . . 1 Full Trace Events . | . . . Feedback Events . | . . . Feedback Blocked . | . . . Robot Schematics Acquired . | . . . Robots Built . | . . . Authchips . | . . . Time . | . . . Total Robot Build Rating . | . . . Part Schematics Acquired . | . . . Parts Built . | . . . Authchips . | . . . Time . | . . . Total Part Build Rating . | . . . Parts Repaired . | . . . Time . | . . . Parts Recycled . | . . . Recycled Matter . | . . . Retrieved Matter . | . . . Retrieved Components . | . . . Parts Scanalyzed . | . . . Part Schematics Acquired . | . . . Parts Damaged . | . . . Bothacking | -11 -10 -9 ------------ Run | Yrd Mat Mat Used RIF Installer . | . . . Robots Hacked . | . . . Non-combat . | . . . Combat . | . . . Robot Hacks Applied . | . . . Relay Couplers Released . | . . . Fabnet Peak Effective % . | . . . Robots Rewired . | . . . Allies Hacked . | . . . Hacks Repelled . | . . . Allies | -11 -10 -9 -------- Run | Yrd Mat Mat Total Allies . | . . . Largest Group . | . . . Highest-Rated Group . | . . . Highest-Rated Ally . | . . . Total Orders . | . . . Ally Attacks . | . . . Total Damage . | . . . Kills . | . . . Allies Corrupted . | . . . Allies Melted . | . . . Intel | -11 -10 -9 ------- Run | Yrd Mat Mat Robot Analysis Total . | . . . Derelict Logs Recovered . | . . . Drone Launches . | . . . Drone Recoveries . | . . . Exploration | -11 -10 -9 ------------- Run | Yrd Mat Mat Turns Passed 969 | 85 242 642 Spaces Moved 1079 | 51 235 793 Core 449 | 13 . 436 Treads 136 | 38 98 . Legs . | . . . Wheels . | . . . Hover . | . . . Flight 494 | . 137 357 Fastest Speed 31 | 50 37 31 Average Speed 77 | 131 91 69 Slowest Speed 160 | 160 160 100 Overloaded Moves . | . . . Propulsion Burnouts . | . . . Robots Hopped 1 | . . 1 Cave-ins Triggered . | . . . Exploration Rate (%) 25 | 5 25 45 Regions Visited 2 Branch Regions . Pre-discovered Areas . | . . . Known Exits Taken . | . . . Unknown Exits Taken 2 | 1 1 . Scrap Searched . | . . . Spaces Dug . | . . . Terrain Destroyed 297 | . 59 238 Melee . | . . . Projectile . | . . . AOE 297 | . 59 238 Terrain Rammed . | . . . Walls Destroyed . | . . . Machines Disabled . | . . . Actions | -11 -10 -9 --------- Run | Yrd Mat Mat Total 1164 | 68 255 841 Wait 4 | 2 . 2 Move 1075 | 50 234 791 Hop 1 | . . 1 Pick Up 24 | 8 9 7 Fast Attach . | . . . Attach 12 | 6 1 5 Detach 1 | . . 1 Swap 6 | . 4 2 Drop 7 | 1 4 2 Fire 31 | 1 3 27 Melee . | . . . Ram 3 | . . 3 Kick . | . . . Crush . | . . . Escape Stasis . | . . . Rewire . | . . . Trap . | . . . Miscellaneous . | . . . Route ------- -11/Scrapyard -10/Materials -9/Materials History --------- Turn | Location | Event 8 | -11/Scrapyard | Discovered new exit (range 14) 86 | -11/Scrapyard | Entered Materials 301 | -10/Materials | Discovered new exit (range 11) 311 | -10/Materials | Build established: Mutant 328 | -10/Materials | Entered another Materials area 328 | -9/Materials | Evolved 2 slots: Propulsion x2 525 | -9/Materials | Lost 3 parts (2n1w) 913 | -9/Materials | Core integrity fell below 50% 969 | -9/Materials | Core integrity fell below 20% 970 | -9/Materials | Self-destructed Last Messages --------------- K-01 Serf collects debris. U-05 Engineer lays Concrete. K-01 Serf cleans the Fusion Modulator. U-05 Engineer lays Concrete. K-01 Serf cleans the Fusion Modulator. The unstable cave ceiling collapses. U-05 Engineer lays Concrete. K-01 Serf collects debris. Mni. Grenade Launcher destroyed. T-07 Excavator is excavating. O-16 Technician: "IFF HANDSHAKE FAILED. SECURING TERMINAL." ALERT: Hostiles spotted, dispatching reinforcements to Terminal M009. K-01 Serf cleans the Material Processor. Material Processor disabled. Slammed into Y-45 Defender. Mni. Grenade Launcher destroyed. Critical hit (Burn: +37). Cld. Ion Engine destroyed. Map ----- +----------------------------------------------------+ | | | | | | | | | | | | | | | | | | | | | | | | | ?????????????????????????????????????????????????? | | ?????????????????????????????????????????????????? | | ?????????????????????????????????????????????????? | | ?????????????????????????????????????????????????? | | ?????????????????????????????????????????????????? | | ?????????????????????????????????????????????????? | | ?????????????????????????????????????????????????? | | ?????????????????????????????????????????????????? | | ??????????????????????????????????#??????????????? | | ????????????????????????????????? ???????????????? | | ??????????????????????????????? ????????????????? | | ?????????????????????????????? #?????????????????? | | ???????????????????########## #?????????????????? | | ??????????????###+## @ #?????????????????? | | ??????????????# #?????????????????? | | ??????????????# #?????????????????? | | ??????????????## """ #?????????????????? | | ???????????????# """ #########?????????????????? | | ???????????????# """ ###########???????????????? | | ??????????###### """g # #???????????????? | | ??????? k gY # #???????????????? | | ??????? + """ #???????????????? | | ??????????########+### # """" #???????????????? | | ????????????????? ??# # """"" #???????????????? | | ?????????????????"???# # """"" #???????????????? | | ?????????????????????# # """ #???????????????? | | ?????????????????????# # #???????????????? | | ?????????????????????# ###########???????????????? | | ?????????????????????#+#########?????????????????? | | ?????????????????????# #?????????????????? | | ?????????????????????# "" #?????????????????? | | ?#???????????????????# """ """ #?????????????????? | | #???????????????????# """ S" #?????????????????? | | #???????????????????# """ #?????????????????? | | #???????????????????# #?????????????????? | | #???????????????????# #?????????????????? | | ###?????????????????# #??####???????????? | | +#T####+####################/### #???????????? | +----------------------------------------------------+ Best States ------------- Heat Dissipation 28 Energy Generation 14 Energy Capacity 280 Matter Stores 300 Matter Capacity 300 Sight Range 16 Terrain Scan Density 10 Additional Mass Support 6 Evasion (%) 63 Recoil Reduction 2 Item Schematics ----------------- None Robot Schematics ------------------ None Fabricated ------------ Nothing Alien Tech Used ----------------- None Achievements -------------- None Challenges ------------ None Game ------ Seed PropulsionConstructFlakker Manual? 0 Play Time 00:24:33 Cumulative 2.1 hours Start 2025.01.14 @ 15:10:07 End 2025.01.14 @ 17:39:00 Sessions 1 Manual Loads 0 Difficulty Rogue Special Mode None Game No. 6 Rogue 6 Adventurer 0 Explorer 0 Win Type - Total 0 Types 0/0/0/0/0/0/0/0/0 Lore% 1 Gallery% 6 Achievement% 7 Wizard Run 0 Options --------- Layout 1 ASCII 0 Keyboard 0 Movement Arrows Keybinds 0 Fullscreen 1 Font 24/Smallcaps Map View 25x20 Zoom Use 99% Tactical HUD 0 Map Filters NONE Filters NONE Steam 1 RUN: 28d058ea-bd15-4adc-a86c-7b5afa6990d8